Department Family,Entity,Payment Date,Expense Type,Expense Area,Supplier,Transaction Number,Amount,Invoice Description,Postal Code,Expenditure Type
Food Standards Agency,Food Standards Agency,28/08/2014,ASD support services,IT Service Delivery,Capita Secure Information Solutions Ltd,93803089,"296,305.85",PO 418889 CAPITA MONTHLY SERVICE CHARGE - JULY 2014 ,SN14 0TW,Admin
Food Standards Agency,Food Standards Agency,26/08/2014,Project Programme expenditure,Food & Feed Monitoring & Policy,C E F A S,8004055,"236,899.00","FS315015, Bio Toxins Analysis Jul 14",NR33 0HT,Programme
Food Standards Agency,Food Standards Agency,27/08/2014,Project Programme expenditure,Animal Feed     ,Trading Standards Institute (GRANTS),ERS-35222-49499,"219,611.19",Feed Off. Conts 2014/5 Prog. delivery Q1.  Feed Official Controls funding 2014/15: To deliver a programme of Official Controls in Q1 2014/15.,SS15 6TH,Programme
Food Standards Agency,Food Standards Agency,05/08/2014,Project Programme expenditure,Food & Feed Monitoring & Policy,C E F A S,8004015,"185,350.00","FS315015, Bio Toxins Analysis Jul 14",NR33 0HT,Programme
Food Standards Agency,Food Standards Agency,26/08/2014,Civil service pension administration,Finance Director & Branch,London Pensions Fund Authority,FSAAUG14,"155,165.00",PO 417619 AUG 14 FUND VALUATION 2013,EC3N 4LP,Admin
Food Standards Agency,Food Standards Agency,26/08/2014,Civil service pension administration,Finance Director & Branch,London Pensions Fund Authority,FSAJUL14,"155,165.00",PO 417619 JULY 14 FUND VALUATION 2013,EC3N 4LP,Admin
Food Standards Agency,Food Standards Agency,26/08/2014,Civil service pension administration,Finance Director & Branch,London Pensions Fund Authority,FSAJUN14,"155,165.00",PO 417619 JUNE 14 FUND VALUATION 2013,EC3N 4LP,Admin
Food Standards Agency,Food Standards Agency,19/08/2014,Project Programme expenditure,Microbiological Food Safety Branch,University Of Liverpool,21450416,"149,605.00",PO 416864 CLAIM FOR DELIVERABLE 02/01,L69 7ZX,Programme
Food Standards Agency,Food Standards Agency,11/08/2014,Rates/contrib in lieu of rates,Security & Estates,London Borough Of Camden,ARE683516514031414859200A,"148,592.00",PO 418784 AVIATION HSE. BUS. RATES - AUG 2014 A/RE 683165,WC1H 8NH,Admin
Food Standards Agency,Food Standards Agency,26/08/2014,Project Programme expenditure,Analysis & Research Branch,Food & Environment Research Agency,F0038381,"52,390.32",PO 414124 NRL CHEMICAL CONTAMINANTS,YO41 1LZ,Programme
Food Standards Agency,Food Standards Agency,05/08/2014,Project Programme expenditure,Food & Feed Monitoring & Policy,C E F A S,8004018,"50,987.16","FS315014, FS315019, FS315018, FS315016, Phytoplankton Analysis Jul 14",NR33 0HT,Programme
Food Standards Agency,Food Standards Agency,26/08/2014,Project Programme expenditure,Food & Feed Monitoring & Policy,C E F A S,8004058,"50,987.16","FS315019, Phytoplankton Analysis Jul 14",NR33 0HT,Programme
Food Standards Agency,Food Standards Agency,11/08/2014,Analysis of samples (non Trichinella),Operational Delivery,Food & Environment Research Agency,F0038235,"49,365.00",PO 417504 SAMPLE ANALYSIS,YO41 1LZ,Programme
Food Standards Agency,Food Standards Agency,26/08/2014,Project Programme expenditure,Food & Feed Monitoring & Policy,C E F A S,8004058,"44,400.00","FS315019, Phytoplankton Analysis Jul 14",NR33 0HT,Programme
Food Standards Agency,Food Standards Agency,13/08/2014,Project Programme expenditure,Strategic Stakeholder & Consumer Engagement,Williams Lea Ltd,FSASc14070001,"43,868.87","FS324014, HHEAPS items - thermometers, pens and pencils",W2 6LG,Programme
Food Standards Agency,Food Standards Agency,05/08/2014,ASD support services,IT Service Delivery,Capita Secure Information Solutions Ltd,93792796,"41,400.00",PO 418518 K2 BLACKPEARL LICENCE YR 2 COSTS,SN14 0TW,Admin
Food Standards Agency,Food Standards Agency,26/08/2014,Project Programme expenditure,Delivery,C E F A S,8004056,"40,448.58",PO 410792 & 417774 SAMPLE ANALYSIS,NR33 0HT,Programme
Food Standards Agency,Food Standards Agency,05/08/2014,Project Programme expenditure,Food Production Branch,University Of Bristol,FMVS1033340,"38,629.20",PO 402296 PROJECT FS235009/M03066,BS8 1HH,Programme
Food Standards Agency,Food Standards Agency,11/08/2014,Programme Evidence & Research Expenditure,Meat & Hygiene & TSE Policy Branch,University Of Lincoln,12028282,"38,000.00",PO 414541 FS101044 D02.00 COMPLETION OF INDUSTRIAL SURVEY REPORT,LN6 7TS,Programme
Food Standards Agency,Food Standards Agency,28/08/2014,Project Programme expenditure,Chemical Risk Assessment Unit,Creme Software Ltd,070814,"36,940.35",FOREIGN PAYMENT,Dublin 2,Programme
Food Standards Agency,Food Standards Agency,05/08/2014,Project Programme expenditure,Food & Feed Monitoring & Policy,C E F A S,8004018,"35,520.00","FS315014, FS315019, FS315018, FS315016, Phytoplankton Analysis Jul 14",NR33 0HT,Programme
Food Standards Agency,Food Standards Agency,19/08/2014,Project Programme expenditure,Food & Feed Monitoring & Policy,Hall Mark Meat Hygiene Ltd,SI0000727,"33,633.00","FS315020, Sampling visits July 2014",GL6 9EN,Programme
Food Standards Agency,Food Standards Agency,21/08/2014,Project Programme expenditure,Operations Local Delivery ,N S F Safety & Quality UK Ltd,5039860,"33,015.00",PO 417523 JULY 14 COACHING VISITS,OX29 8SJ,Programme
Food Standards Agency,Food Standards Agency,15/08/2014,Utilities,Security & Estates,E D F Energy,EDF0170,"32,879.76",EDF INVOICE 170 - JULY 2014,EX1 3UT,Admin
Food Standards Agency,Food Standards Agency,19/08/2014,Programme Evidence & Research Expenditure,Agricultural Process & Environmental Contaminants & Strategy,Food & Environment Research Agency,F0038449,"32,564.00",PO 412420 FS102005 GEOGRAPHICAL INVESTIGATION FOR CHEMICAL CONTAMINANTS IN SEAFOOD,YO41 1LZ,Programme
Food Standards Agency,Food Standards Agency,13/08/2014,Programme Evidence & Research Expenditure,Agricultural Process & Environmental Contaminants & Strategy,Hall Mark Meat Hygiene Ltd,SI737,"30,456.00",PO 417080 DIET STUDY,GL6 9EN,Programme
Food Standards Agency,Food Standards Agency,05/08/2014,Programme Evidence & Research Expenditure,Healthier Eating & Food Standards,Public Health England,6087406,"30,183.00","FS111111, NDNS urinary sodium boost payments Q1",SP4 0JG,Programme
Food Standards Agency,Food Standards Agency,05/08/2014,Project Programme expenditure,Food & Feed Monitoring & Policy,The James Hutton Institute,SIINV/00001970,"29,771.60","FS101056, The capacity and pathogenic potential of VTEC",DD2 5DA,Programme
Food Standards Agency,Food Standards Agency,13/08/2014,Programme Evidence & Research Expenditure,Agricultural Process & Environmental Contaminants & Strategy,Brook Lyndhurst Ltd,00000870,"28,600.00",PO 417342 FIELDWORK,W6 0LE,Programme
Food Standards Agency,Food Standards Agency,15/08/2014,Programme Evidence & Research Expenditure,Microbiological Food Safety Branch,University Of Liverpool,21445980,"27,008.16",PO 416092 DELIVERABLES CLAIM,L69 7ZX,Programme
Food Standards Agency,Food Standards Agency,29/08/2014,Project Programme expenditure,Comms Directors Office,Creative Choice CIC,1802,"27,000.00",PO 419057  Food Safety Weekend Campaign,SW1H 0DJ,Programme
Food Standards Agency,Food Standards Agency,26/08/2014,Service charges,Security & Estates,G4s Integrated Services (Uk) Ltd,M18066,"26,578.77",G4S MONTHLY CONTRACT CHARGES JULY 2014,S81 7QF,Admin
Food Standards Agency,Food Standards Agency,26/08/2014,Programme Evidence & Research Expenditure,EU Regulatory Reform Branch,Food Control Consultants Ltd,357,"25,912.00",Po 418192 IMPROVED FOOD CHAIN INFO ETC,EH12 7AN,Programme
Food Standards Agency,Food Standards Agency,26/08/2014,Project Programme expenditure,Operations Local Delivery ,C E F A S,8004056,"25,752.00",PO 410792 & 417774 SAMPLE ANALYSIS,NR33 0HT,Programme
Food Standards Agency,Food Standards Agency,05/08/2014,Project Programme expenditure,Food & Feed Monitoring & Policy,C E F A S,8004018,"24,217.00","FS315014, FS315019, FS315018, FS315016, Phytoplankton Analysis Jul 14",NR33 0HT,Programme
Food Standards Agency,Food Standards Agency,26/08/2014,Project Programme expenditure,Food & Feed Monitoring & Policy,C E F A S,8004058,"23,805.00","FS315019, Phytoplankton Analysis Jul 14",NR33 0HT,Programme
Food Standards Agency,Food Standards Agency,28/08/2014,ASD support services,Finance Director & Branch,Shared Services Connected Ltd,100000404,"23,147.18",PO 415746 MONTHLY CHARGE,HP2 7AH,Admin
Food Standards Agency,Food Standards Agency,05/08/2014,Project Programme expenditure,Food & Feed Monitoring & Policy,C E F A S,8004018,"22,885.00","FS315014, FS315019, FS315018, FS315016, Phytoplankton Analysis Jul 14",NR33 0HT,Programme
Food Standards Agency,Food Standards Agency,07/08/2014,Laundry,Operational Delivery,Apparelmaster UK Ltd,55317,"22,122.43","PO 417042, 29/6-26/7/14 CHARGES",PR2 9ZD,Programme
Food Standards Agency,Food Standards Agency,11/08/2014,Programme Evidence & Research Expenditure,Meat & Hygiene & TSE Policy Branch,University Of Lincoln,12028282,"22,000.00",PO 414541 FS101044 D02.00 COMPLETION OF INDUSTRIAL SURVEY REPORT,LN6 7TS,Programme
Food Standards Agency,Food Standards Agency,26/08/2014,Project Programme expenditure,Operations Local Delivery ,C E F A S,8004056,"21,913.00",PO 410792 & 417774 SAMPLE ANALYSIS,NR33 0HT,Programme
Food Standards Agency,Food Standards Agency,07/08/2014,Carriage of samples,Operational Delivery,Topspeed Couriers Limited,56186,"21,352.50",PO 417507 LOGISTICS,WA16 8XN,Programme
Food Standards Agency,Food Standards Agency,28/08/2014,ASD support services,IT Strategy,Capita Secure Information Solutions Ltd,93803047,"19,065.05",PO 416680 PENTAGON PROJECT MANAGEMENT CHARGES,SN14 0TW,Admin
Food Standards Agency,Food Standards Agency,28/08/2014,ASD support services,IT Strategy,Capita Secure Information Solutions Ltd,93803047,"18,631.62",PO 416680 PENTAGON PROJECT MANAGEMENT CHARGES,SN14 0TW,Admin
Food Standards Agency,Food Standards Agency,26/08/2014,Project Programme expenditure,Analysis & Research Branch,Food & Environment Research Agency,F0038381,"17,686.57",PO 414124 NRL CHEMICAL CONTAMINANTS,YO41 1LZ,Programme
Food Standards Agency,Food Standards Agency,26/08/2014,Security,Security & Estates,G4s Integrated Services (Uk) Ltd,M18066,"16,314.43",G4S MONTHLY CONTRACT CHARGES JULY 2014,S81 7QF,Admin
Food Standards Agency,Food Standards Agency,26/08/2014,Service charges,Security & Estates,G4s Integrated Services (Uk) Ltd,M18066,"16,051.21",G4S MONTHLY CONTRACT CHARGES JULY 2014,S81 7QF,Admin
Food Standards Agency,Food Standards Agency,05/08/2014,Project Programme expenditure,Chief Scientist,Food & Environment Research Agency,F0037399,"16,000.00",PO 418350 PROJECT FS10108 D 1-2 & D3-4,YO41 1LZ,Programme
Food Standards Agency,Food Standards Agency,05/08/2014,Project Programme expenditure,Chief Scientist,Food & Environment Research Agency,F0037399,"16,000.00",PO 418350 PROJECT FS10108 D 1-2 & D3-4,YO41 1LZ,Programme
Food Standards Agency,Food Standards Agency,11/08/2014,Programme Evidence & Research Expenditure,Meat & Hygiene & TSE Policy Branch,University Of Lincoln,12028282,"10,352.80",PO 414541 FS101044 D02.00 COMPLETION OF INDUSTRIAL SURVEY REPORT,LN6 7TS,Programme
Food Standards Agency,Food Standards Agency,13/08/2014,Programme Evidence & Research Expenditure,Healthier Eating & Food Standards,Public Health England,6088410,"10,000.00","FS111111, Scotland Sodium Urinary Boost",SP4 0JG,Programme
Food Standards Agency,Food Standards Agency,13/08/2014,Programme Evidence & Research Expenditure,Healthier Eating & Food Standards,Public Health England,6088410,"10,000.00","FS111111, Scotland Sodium Urinary Boost",SP4 0JG,Programme
Food Standards Agency,Food Standards Agency,13/08/2014,Programme Evidence & Research Expenditure,Healthier Eating & Food Standards,Public Health England,6088410,"10,000.00","FS111111, Scotland Sodium Urinary Boost",SP4 0JG,Programme
Food Standards Agency,Food Standards Agency,11/08/2014,Analysis of samples (non Trichinella),Operational Delivery,Food & Environment Research Agency,F0038235,"9,873.00",PO 417504 SAMPLE ANALYSIS,YO41 1LZ,Programme
Food Standards Agency,Food Standards Agency,05/08/2014,ASD support services,IT Service Delivery,Capita Secure Information Solutions Ltd,93792796,"8,376.00",PO 418518 K2 BLACKPEARL LICENCE YR 2 COSTS,SN14 0TW,Admin
Food Standards Agency,Food Standards Agency,05/08/2014,ASD support services,IT Service Delivery,Capita Secure Information Solutions Ltd,93792796,"8,280.00",PO 418518 K2 BLACKPEARL LICENCE YR 2 COSTS,SN14 0TW,Admin
Food Standards Agency,Food Standards Agency,15/08/2014,Utilities,Security & Estates,E D F Energy,EDF0170,"6,575.95",EDF INVOICE 170 - JULY 2014,EX1 3UT,Admin
Food Standards Agency,Food Standards Agency,05/08/2014,Fixed Assets Additions,IT Strategy,Capita Secure Information Solutions Ltd,93803145,"4,900.00",PO 417200 IL2 TO PSN MIGRATION PHASE 1 DISCOVERY,SN14 0TW,Capital
Food Standards Agency,Food Standards Agency,05/08/2014,Project Programme expenditure,Food & Feed Monitoring & Policy,C E F A S,8004018,"4,673.00","FS315014, FS315019, FS315018, FS315016, Phytoplankton Analysis Jul 14",NR33 0HT,Programme
Food Standards Agency,Food Standards Agency,07/08/2014,Laundry,Operational Delivery,Apparelmaster UK Ltd,55317,"4,424.49","PO 417042, 29/6-26/7/14 CHARGES",PR2 9ZD,Programme
Food Standards Agency,Food Standards Agency,11/08/2014,Subsistence UK,Operations Assurance,Redfern Travel Ltd,086979,"4,003.08",REDFERN TRAVEL INVOICE WEEK 31,BD1 3AZ,Programme
Food Standards Agency,Food Standards Agency,05/08/2014,Fixed Assets Additions,IT Strategy,Capita Secure Information Solutions Ltd,93803145,"3,450.00",PO 417200 IL2 TO PSN MIGRATION PHASE 1 DISCOVERY,SN14 0TW,Capital
Food Standards Agency,Food Standards Agency,11/08/2014,Travel UK ,Operational Delivery,Redfern Travel Ltd,086979,"2,937.44",REDFERN TRAVEL INVOICE WEEK 31,BD1 3AZ,Programme
Food Standards Agency,Food Standards Agency,05/08/2014,Fixed Assets Additions,IT Strategy,Capita Secure Information Solutions Ltd,93803145,"2,875.00",PO 417200 IL2 TO PSN MIGRATION PHASE 1 DISCOVERY,SN14 0TW,Capital
Food Standards Agency,Food Standards Agency,05/08/2014,Fixed Assets Additions,IT Strategy,Capita Secure Information Solutions Ltd,93803145,"2,875.00",PO 417200 IL2 TO PSN MIGRATION PHASE 1 DISCOVERY,SN14 0TW,Capital
Food Standards Agency,Food Standards Agency,26/08/2014,Travel UK ,Animal Feed Branch,Redfern Travel Ltd,087939,"2,802.58",REDFERN TRAVEL INVOICE WEEK 33,BD1 3AZ,Admin
Food Standards Agency,Food Standards Agency,05/08/2014,Fixed Assets Additions,IT Strategy,Capita Secure Information Solutions Ltd,93803145,"2,292.00",PO 417200 IL2 TO PSN MIGRATION PHASE 1 DISCOVERY,SN14 0TW,Capital
Food Standards Agency,Food Standards Agency,05/08/2014,Fixed Assets Additions,IT Strategy,Capita Secure Information Solutions Ltd,93803145,"2,256.00",PO 417200 IL2 TO PSN MIGRATION PHASE 1 DISCOVERY,SN14 0TW,Capital
Food Standards Agency,Food Standards Agency,05/08/2014,Fixed Assets Additions,IT Strategy,Capita Secure Information Solutions Ltd,93803145,"2,256.00",PO 417200 IL2 TO PSN MIGRATION PHASE 1 DISCOVERY,SN14 0TW,Capital
Food Standards Agency,Food Standards Agency,26/08/2014,Travel UK ,HR,Redfern Travel Ltd,087939,"1,985.76",REDFERN TRAVEL INVOICE WEEK 33,BD1 3AZ,Admin
Food Standards Agency,Food Standards Agency,26/08/2014,Travel UK ,Operational Delivery,Redfern Travel Ltd,087939,"1,945.06",REDFERN TRAVEL INVOICE WEEK 33,BD1 3AZ,Programme
Food Standards Agency,Food Standards Agency,05/08/2014,Fixed Assets Additions,IT Strategy,Capita Secure Information Solutions Ltd,93803145,"1,929.00",PO 417200 IL2 TO PSN MIGRATION PHASE 1 DISCOVERY,SN14 0TW,Capital
Food Standards Agency,Food Standards Agency,26/08/2014,Service charges,Security & Estates,G4s Integrated Services (Uk) Ltd,M18066,"1,893.34",G4S MONTHLY CONTRACT CHARGES JULY 2014,S81 7QF,Admin
Food Standards Agency,Food Standards Agency,05/08/2014,ASD support services,IT Service Delivery,Capita Secure Information Solutions Ltd,93792796,"1,675.20",PO 418518 K2 BLACKPEARL LICENCE YR 2 COSTS,SN14 0TW,Admin
Food Standards Agency,Food Standards Agency,11/08/2014,Travel UK ,Consumer Protection & Commercial Support,Redfern Travel Ltd,086979,"1,533.22",REDFERN TRAVEL INVOICE WEEK 31,BD1 3AZ,Admin
Food Standards Agency,Food Standards Agency,26/08/2014,Travel UK ,Planning and Performance,Redfern Travel Ltd,087939,"1,215.38",REDFERN TRAVEL INVOICE WEEK 33,BD1 3AZ,Admin
Food Standards Agency,Food Standards Agency,05/08/2014,Fixed Assets Additions,IT Strategy,Capita Secure Information Solutions Ltd,93803145,"1,146.00",PO 417200 IL2 TO PSN MIGRATION PHASE 1 DISCOVERY,SN14 0TW,Capital
Food Standards Agency,Food Standards Agency,11/08/2014,Travel UK ,Planning and Performance,Redfern Travel Ltd,086979,"1,098.11",REDFERN TRAVEL INVOICE WEEK 31,BD1 3AZ,Admin
Food Standards Agency,Food Standards Agency,26/08/2014,Subsistence UK,Operational Delivery,Redfern Travel Ltd,087939,"1,057.22",REDFERN TRAVEL INVOICE WEEK 33,BD1 3AZ,Programme
Food Standards Agency,Food Standards Agency,26/08/2014,Office machinery: hire,Security & Estates,G4s Integrated Services (Uk) Ltd,M18066,"1,000.00",G4S MONTHLY CONTRACT CHARGES JULY 2014,S81 7QF,Admin
Food Standards Agency,Food Standards Agency,05/08/2014,Fixed Assets Additions,IT Strategy,Capita Secure Information Solutions Ltd,93803145,980.00,PO 417200 IL2 TO PSN MIGRATION PHASE 1 DISCOVERY,SN14 0TW,Capital
Food Standards Agency,Food Standards Agency,05/08/2014,Fixed Assets Additions,IT Strategy,Capita Secure Information Solutions Ltd,93803145,980.00,PO 417200 IL2 TO PSN MIGRATION PHASE 1 DISCOVERY,SN14 0TW,Capital
Food Standards Agency,Food Standards Agency,05/08/2014,Fixed Assets Additions,IT Strategy,Capita Secure Information Solutions Ltd,93803145,980.00,PO 417200 IL2 TO PSN MIGRATION PHASE 1 DISCOVERY,SN14 0TW,Capital
Food Standards Agency,Food Standards Agency,11/08/2014,Travel UK ,HR,Redfern Travel Ltd,086979,949.73,REDFERN TRAVEL INVOICE WEEK 31,BD1 3AZ,Admin
Food Standards Agency,Food Standards Agency,05/08/2014,Fixed Assets Additions,IT Strategy,Capita Secure Information Solutions Ltd,93803145,912.00,PO 417200 IL2 TO PSN MIGRATION PHASE 1 DISCOVERY,SN14 0TW,Capital
Food Standards Agency,Food Standards Agency,11/08/2014,Subsistence UK,Operations Assurance - Admin,Redfern Travel Ltd,086979,898.02,REDFERN TRAVEL INVOICE WEEK 31,BD1 3AZ,Admin
Food Standards Agency,Food Standards Agency,26/08/2014,Travel UK ,Finance Director & Branch,Redfern Travel Ltd,087939,888.26,REDFERN TRAVEL INVOICE WEEK 33,BD1 3AZ,Admin
Food Standards Agency,Food Standards Agency,11/08/2014,Travel UK ,Finance Director & Branch,Redfern Travel Ltd,086979,862.42,REDFERN TRAVEL INVOICE WEEK 31,BD1 3AZ,Admin
Food Standards Agency,Food Standards Agency,11/08/2014,Subsistence UK,Operational Delivery,Redfern Travel Ltd,086979,840.46,REDFERN TRAVEL INVOICE WEEK 31,BD1 3AZ,Programme
Food Standards Agency,Food Standards Agency,11/08/2014,Subsistence UK,Area 1 Scotland - Cluster 11,Redfern Travel Ltd,086979,820.07,REDFERN TRAVEL INVOICE WEEK 31,BD1 3AZ,Programme
Food Standards Agency,Food Standards Agency,05/08/2014,Fixed Assets Additions,IT Strategy,Capita Secure Information Solutions Ltd,93803145,734.00,PO 417200 IL2 TO PSN MIGRATION PHASE 1 DISCOVERY,SN14 0TW,Capital
Food Standards Agency,Food Standards Agency,05/08/2014,Fixed Assets Additions,IT Strategy,Capita Secure Information Solutions Ltd,93803145,690.00,PO 417200 IL2 TO PSN MIGRATION PHASE 1 DISCOVERY,SN14 0TW,Capital
Food Standards Agency,Food Standards Agency,11/08/2014,Travel UK ,Operations Assurance,Redfern Travel Ltd,086979,652.84,REDFERN TRAVEL INVOICE WEEK 31,BD1 3AZ,Programme
Food Standards Agency,Food Standards Agency,26/08/2014,Travel UK ,Legal Branch A,Redfern Travel Ltd,087939,626.69,REDFERN TRAVEL INVOICE WEEK 33,BD1 3AZ,Admin
Food Standards Agency,Food Standards Agency,11/08/2014,Travel UK ,Chair & Deputy Chair,Redfern Travel Ltd,086979,618.79,REDFERN TRAVEL INVOICE WEEK 31,BD1 3AZ,Admin
Food Standards Agency,Food Standards Agency,26/08/2014,Subsistence UK,Operations Assurance,Redfern Travel Ltd,087939,602.80,REDFERN TRAVEL INVOICE WEEK 33,BD1 3AZ,Programme
Food Standards Agency,Food Standards Agency,11/08/2014,Travel UK ,Animal Feed     ,Redfern Travel Ltd,086979,592.77,REDFERN TRAVEL INVOICE WEEK 31,BD1 3AZ,Admin
Food Standards Agency,Food Standards Agency,05/08/2014,Fixed Assets Additions,IT Strategy,Capita Secure Information Solutions Ltd,93803145,575.00,PO 417200 IL2 TO PSN MIGRATION PHASE 1 DISCOVERY,SN14 0TW,Capital
Food Standards Agency,Food Standards Agency,05/08/2014,Fixed Assets Additions,IT Strategy,Capita Secure Information Solutions Ltd,93803145,575.00,PO 417200 IL2 TO PSN MIGRATION PHASE 1 DISCOVERY,SN14 0TW,Capital
Food Standards Agency,Food Standards Agency,05/08/2014,Fixed Assets Additions,IT Strategy,Capita Secure Information Solutions Ltd,93803145,575.00,PO 417200 IL2 TO PSN MIGRATION PHASE 1 DISCOVERY,SN14 0TW,Capital
Food Standards Agency,Food Standards Agency,26/08/2014,Travel UK ,Area 2 Wales - Cluster 21,Redfern Travel Ltd,087939,542.15,REDFERN TRAVEL INVOICE WEEK 33,BD1 3AZ,Programme
Food Standards Agency,Food Standards Agency,11/08/2014,Subsistence UK,Legal Branch A,Redfern Travel Ltd,086979,513.75,REDFERN TRAVEL INVOICE WEEK 31,BD1 3AZ,Admin
Food Standards Agency,Food Standards Agency,11/08/2014,Subsistence UK,Area 3 North West England - Cluster 33,Redfern Travel Ltd,086979,487.12,REDFERN TRAVEL INVOICE WEEK 31,BD1 3AZ,Programme
Food Standards Agency,Food Standards Agency,05/08/2014,Fixed Assets Additions,IT Strategy,Capita Secure Information Solutions Ltd,93803145,458.40,PO 417200 IL2 TO PSN MIGRATION PHASE 1 DISCOVERY,SN14 0TW,Capital
Food Standards Agency,Food Standards Agency,05/08/2014,Fixed Assets Additions,IT Strategy,Capita Secure Information Solutions Ltd,93803145,451.20,PO 417200 IL2 TO PSN MIGRATION PHASE 1 DISCOVERY,SN14 0TW,Capital
Food Standards Agency,Food Standards Agency,05/08/2014,Fixed Assets Additions,IT Strategy,Capita Secure Information Solutions Ltd,93803145,451.20,PO 417200 IL2 TO PSN MIGRATION PHASE 1 DISCOVERY,SN14 0TW,Capital
Food Standards Agency,Food Standards Agency,11/08/2014,Subsistence UK,Animal Feed     ,Redfern Travel Ltd,086979,441.12,REDFERN TRAVEL INVOICE WEEK 31,BD1 3AZ,Admin
Food Standards Agency,Food Standards Agency,11/08/2014,Travel UK ,Non Meat Field Ops,Redfern Travel Ltd,086979,390.45,REDFERN TRAVEL INVOICE WEEK 31,BD1 3AZ,Programme
Food Standards Agency,Food Standards Agency,26/08/2014,Subsistence UK,HR,Redfern Travel Ltd,087939,386.12,REDFERN TRAVEL INVOICE WEEK 33,BD1 3AZ,Admin
Food Standards Agency,Food Standards Agency,05/08/2014,Fixed Assets Additions,IT Strategy,Capita Secure Information Solutions Ltd,93803145,385.80,PO 417200 IL2 TO PSN MIGRATION PHASE 1 DISCOVERY,SN14 0TW,Capital
Food Standards Agency,Food Standards Agency,11/08/2014,Subsistence UK,Area 3 North West England - Cluster 34,Redfern Travel Ltd,086979,378.42,REDFERN TRAVEL INVOICE WEEK 31,BD1 3AZ,Programme
Food Standards Agency,Food Standards Agency,11/08/2014,Subsistence UK,HR,Redfern Travel Ltd,086979,373.69,REDFERN TRAVEL INVOICE WEEK 31,BD1 3AZ,Admin
Food Standards Agency,Food Standards Agency,26/08/2014,Travel UK ,Operations Assurance,Redfern Travel Ltd,087939,373.06,REDFERN TRAVEL INVOICE WEEK 33,BD1 3AZ,Programme
Food Standards Agency,Food Standards Agency,11/08/2014,Subsistence UK,Non Meat Field Ops,Redfern Travel Ltd,086979,341.03,REDFERN TRAVEL INVOICE WEEK 31,BD1 3AZ,Programme
Food Standards Agency,Food Standards Agency,26/08/2014,Travel UK ,IT Service Delivery,Redfern Travel Ltd,087939,317.39,REDFERN TRAVEL INVOICE WEEK 33,BD1 3AZ,Admin
Food Standards Agency,Food Standards Agency,11/08/2014,Subsistence UK,Area 1 Scotland - Cluster 15,Redfern Travel Ltd,086979,313.96,REDFERN TRAVEL INVOICE WEEK 31,BD1 3AZ,Programme
Food Standards Agency,Food Standards Agency,26/08/2014,Subsistence UK,Comms Directors Office,Redfern Travel Ltd,087939,311.42,REDFERN TRAVEL INVOICE WEEK 33,BD1 3AZ,Admin
Food Standards Agency,Food Standards Agency,11/08/2014,Subsistence UK,Consumer Protection & Commercial Support,Redfern Travel Ltd,086979,307.12,REDFERN TRAVEL INVOICE WEEK 31,BD1 3AZ,Admin
Food Standards Agency,Food Standards Agency,11/08/2014,Subsistence UK,Area 3 North West England - Cluster 32,Redfern Travel Ltd,086979,303.24,REDFERN TRAVEL INVOICE WEEK 31,BD1 3AZ,Programme
Food Standards Agency,Food Standards Agency,26/08/2014,Travel UK ,Procurement,Redfern Travel Ltd,087939,302.56,REDFERN TRAVEL INVOICE WEEK 33,BD1 3AZ,Admin
Food Standards Agency,Food Standards Agency,26/08/2014,Travel UK ,Area 1 Scotland - Cluster 12,Redfern Travel Ltd,087939,301.12,REDFERN TRAVEL INVOICE WEEK 33,BD1 3AZ,Programme
Food Standards Agency,Food Standards Agency,11/08/2014,Travel UK ,Operations Local Delivery ,Redfern Travel Ltd,086979,285.10,REDFERN TRAVEL INVOICE WEEK 31,BD1 3AZ,Admin
Food Standards Agency,Food Standards Agency,11/08/2014,Subsistence UK,Area 5 South West England - Cluster 57,Redfern Travel Ltd,086979,275.12,REDFERN TRAVEL INVOICE WEEK 31,BD1 3AZ,Programme
Food Standards Agency,Food Standards Agency,11/08/2014,Travel UK ,Chief Scientist,Redfern Travel Ltd,086979,274.19,REDFERN TRAVEL INVOICE WEEK 31,BD1 3AZ,Admin
Food Standards Agency,Food Standards Agency,11/08/2014,Travel UK ,Operations Assurance - Admin,Redfern Travel Ltd,086979,269.63,REDFERN TRAVEL INVOICE WEEK 31,BD1 3AZ,Admin
Food Standards Agency,Food Standards Agency,26/08/2014,Subsistence UK,Area 5 South West England - Cluster 52,Redfern Travel Ltd,087939,267.12,REDFERN TRAVEL INVOICE WEEK 33,BD1 3AZ,Programme
Food Standards Agency,Food Standards Agency,11/08/2014,Subsistence UK,IT Information & Knowledge Management,Redfern Travel Ltd,086979,265.56,REDFERN TRAVEL INVOICE WEEK 31,BD1 3AZ,Admin
Food Standards Agency,Food Standards Agency,26/08/2014,Subsistence UK,Area 5 South West England - Cluster 57,Redfern Travel Ltd,087939,264.57,REDFERN TRAVEL INVOICE WEEK 33,BD1 3AZ,Programme
Food Standards Agency,Food Standards Agency,11/08/2014,Subsistence UK,Better Regulations & Sustainable Development,Redfern Travel Ltd,086979,262.68,REDFERN TRAVEL INVOICE WEEK 31,BD1 3AZ,Admin
Food Standards Agency,Food Standards Agency,26/08/2014,Subsistence UK,Planning and Performance,Redfern Travel Ltd,087939,261.12,REDFERN TRAVEL INVOICE WEEK 33,BD1 3AZ,Admin
Food Standards Agency,Food Standards Agency,11/08/2014,Travel UK ,Procurement,Redfern Travel Ltd,086979,260.84,REDFERN TRAVEL INVOICE WEEK 31,BD1 3AZ,Admin
Food Standards Agency,Food Standards Agency,11/08/2014,Travel UK ,Internal Audit,Redfern Travel Ltd,086979,258.40,REDFERN TRAVEL INVOICE WEEK 31,BD1 3AZ,Admin
Food Standards Agency,Food Standards Agency,11/08/2014,Subsistence UK,Area 1 Scotland - Cluster 13,Redfern Travel Ltd,086979,257.96,REDFERN TRAVEL INVOICE WEEK 31,BD1 3AZ,Programme
Food Standards Agency,Food Standards Agency,26/08/2014,Subsistence UK,Internal Audit,Redfern Travel Ltd,087939,257.12,REDFERN TRAVEL INVOICE WEEK 33,BD1 3AZ,Admin
Food Standards Agency,Food Standards Agency,11/08/2014,Subsistence UK,Finance Director & Branch,Redfern Travel Ltd,086979,257.11,REDFERN TRAVEL INVOICE WEEK 31,BD1 3AZ,Admin
Food Standards Agency,Food Standards Agency,26/08/2014,Travel UK ,Animal Feed     ,Redfern Travel Ltd,087939,255.98,REDFERN TRAVEL INVOICE WEEK 33,BD1 3AZ,Admin
Food Standards Agency,Food Standards Agency,11/08/2014,Travel UK ,Area 2 Wales - Cluster 21,Redfern Travel Ltd,086979,252.80,REDFERN TRAVEL INVOICE WEEK 31,BD1 3AZ,Programme
Food Standards Agency,Food Standards Agency,11/08/2014,Subsistence UK,Procurement,Redfern Travel Ltd,086979,251.12,REDFERN TRAVEL INVOICE WEEK 31,BD1 3AZ,Admin
Food Standards Agency,Food Standards Agency,11/08/2014,Subsistence UK,Area 5 South West England - Cluster 53,Redfern Travel Ltd,086979,244.16,REDFERN TRAVEL INVOICE WEEK 31,BD1 3AZ,Programme
Food Standards Agency,Food Standards Agency,26/08/2014,Subsistence UK,Consumer Protection & Commercial Support,Redfern Travel Ltd,087939,239.56,REDFERN TRAVEL INVOICE WEEK 33,BD1 3AZ,Admin
Food Standards Agency,Food Standards Agency,11/08/2014,Travel UK ,Food Policy Private Office,Redfern Travel Ltd,086979,238.82,REDFERN TRAVEL INVOICE WEEK 31,BD1 3AZ,Admin
Food Standards Agency,Food Standards Agency,11/08/2014,Subsistence UK,Operations Local Delivery ,Redfern Travel Ltd,086979,230.68,REDFERN TRAVEL INVOICE WEEK 31,BD1 3AZ,Admin
Food Standards Agency,Food Standards Agency,05/08/2014,Fixed Assets Additions,IT Strategy,Capita Secure Information Solutions Ltd,93803145,229.20,PO 417200 IL2 TO PSN MIGRATION PHASE 1 DISCOVERY,SN14 0TW,Capital
Food Standards Agency,Food Standards Agency,11/08/2014,Subsistence UK,Area 1 Scotland - Cluster 12,Redfern Travel Ltd,086979,228.61,REDFERN TRAVEL INVOICE WEEK 31,BD1 3AZ,Programme
Food Standards Agency,Food Standards Agency,26/08/2014,Travel UK ,Area 6 South East England - Cluster 62,Redfern Travel Ltd,087939,226.03,REDFERN TRAVEL INVOICE WEEK 33,BD1 3AZ,Programme
Food Standards Agency,Food Standards Agency,26/08/2014,Subsistence UK,Animal Feed     ,Redfern Travel Ltd,087939,220.86,REDFERN TRAVEL INVOICE WEEK 33,BD1 3AZ,Admin
Food Standards Agency,Food Standards Agency,11/08/2014,Travel UK ,Area 1 Scotland - Cluster 15,Redfern Travel Ltd,086979,218.74,REDFERN TRAVEL INVOICE WEEK 31,BD1 3AZ,Programme
Food Standards Agency,Food Standards Agency,11/08/2014,Travel UK ,Food Hygiene Policy Branch,Redfern Travel Ltd,086979,214.06,REDFERN TRAVEL INVOICE WEEK 31,BD1 3AZ,Admin
Food Standards Agency,Food Standards Agency,11/08/2014,Subsistence UK,Area 2 Wales - Cluster 23,Redfern Travel Ltd,086979,207.06,REDFERN TRAVEL INVOICE WEEK 31,BD1 3AZ,Programme
Food Standards Agency,Food Standards Agency,11/08/2014,Subsistence UK,Area 6 South East England - Cluster 63,Redfern Travel Ltd,086979,207.06,REDFERN TRAVEL INVOICE WEEK 31,BD1 3AZ,Programme
Food Standards Agency,Food Standards Agency,11/08/2014,Subsistence UK,Area 3 North West England - Cluster 31,Redfern Travel Ltd,086979,199.56,REDFERN TRAVEL INVOICE WEEK 31,BD1 3AZ,Programme
Food Standards Agency,Food Standards Agency,11/08/2014,Subsistence UK,Area 3 North West England - Cluster 36,Redfern Travel Ltd,086979,199.56,REDFERN TRAVEL INVOICE WEEK 31,BD1 3AZ,Programme
Food Standards Agency,Food Standards Agency,05/08/2014,Fixed Assets Additions,IT Strategy,Capita Secure Information Solutions Ltd,93803145,196.00,PO 417200 IL2 TO PSN MIGRATION PHASE 1 DISCOVERY,SN14 0TW,Capital
Food Standards Agency,Food Standards Agency,05/08/2014,Fixed Assets Additions,IT Strategy,Capita Secure Information Solutions Ltd,93803145,196.00,PO 417200 IL2 TO PSN MIGRATION PHASE 1 DISCOVERY,SN14 0TW,Capital
Food Standards Agency,Food Standards Agency,26/08/2014,Travel UK ,Chemical Risk Assessment Unit,Redfern Travel Ltd,087939,193.59,REDFERN TRAVEL INVOICE WEEK 33,BD1 3AZ,Admin
Food Standards Agency,Food Standards Agency,26/08/2014,Travel UK ,Food Policy Private Office,Redfern Travel Ltd,087939,191.39,REDFERN TRAVEL INVOICE WEEK 33,BD1 3AZ,Admin
Food Standards Agency,Food Standards Agency,26/08/2014,Travel UK ,Comms Directors Office,Redfern Travel Ltd,087939,189.44,REDFERN TRAVEL INVOICE WEEK 33,BD1 3AZ,Admin
Food Standards Agency,Food Standards Agency,11/08/2014,Subsistence UK,Planning and Performance,Redfern Travel Ltd,086979,186.37,REDFERN TRAVEL INVOICE WEEK 31,BD1 3AZ,Admin
Food Standards Agency,Food Standards Agency,11/08/2014,Travel UK ,Animal Feed Branch,Redfern Travel Ltd,086979,184.58,REDFERN TRAVEL INVOICE WEEK 31,BD1 3AZ,Admin
Food Standards Agency,Food Standards Agency,05/08/2014,Fixed Assets Additions,IT Strategy,Capita Secure Information Solutions Ltd,93803145,182.40,PO 417200 IL2 TO PSN MIGRATION PHASE 1 DISCOVERY,SN14 0TW,Capital
Food Standards Agency,Food Standards Agency,26/08/2014,Travel UK ,Area 2 Wales - Cluster 23,Redfern Travel Ltd,087939,179.88,REDFERN TRAVEL INVOICE WEEK 33,BD1 3AZ,Programme
Food Standards Agency,Food Standards Agency,11/08/2014,Travel UK ,Comms Directors Office,Redfern Travel Ltd,086979,178.44,REDFERN TRAVEL INVOICE WEEK 31,BD1 3AZ,Admin
Food Standards Agency,Food Standards Agency,11/08/2014,Subsistence UK,Area 3 North West England - Cluster 35,Redfern Travel Ltd,086979,175.56,REDFERN TRAVEL INVOICE WEEK 31,BD1 3AZ,Programme
Food Standards Agency,Food Standards Agency,11/08/2014,Travel UK ,Approvals & Veterinary Advice,Redfern Travel Ltd,086979,174.84,REDFERN TRAVEL INVOICE WEEK 31,BD1 3AZ,Programme
Food Standards Agency,Food Standards Agency,11/08/2014,Travel UK ,Area 2 Wales - Cluster 22,Redfern Travel Ltd,086979,173.23,REDFERN TRAVEL INVOICE WEEK 31,BD1 3AZ,Programme
Food Standards Agency,Food Standards Agency,11/08/2014,Travel UK ,Procurement,Redfern Travel Ltd,086979,167.79,REDFERN TRAVEL INVOICE WEEK 31,BD1 3AZ,Admin
Food Standards Agency,Food Standards Agency,11/08/2014,Subsistence EC,Chief Scientist,Redfern Travel Ltd,086979,167.56,REDFERN TRAVEL INVOICE WEEK 31,BD1 3AZ,Admin
Food Standards Agency,Food Standards Agency,26/08/2014,Subsistence UK,Area 2 Wales - Cluster 21,Redfern Travel Ltd,087939,163.77,REDFERN TRAVEL INVOICE WEEK 33,BD1 3AZ,Programme
Food Standards Agency,Food Standards Agency,11/08/2014,Travel UK ,Area 6 South East England - Cluster 62,Redfern Travel Ltd,086979,163.70,REDFERN TRAVEL INVOICE WEEK 31,BD1 3AZ,Programme
Food Standards Agency,Food Standards Agency,26/08/2014,Travel UK ,Approvals & Veterinary Advice,Redfern Travel Ltd,087939,161.74,REDFERN TRAVEL INVOICE WEEK 33,BD1 3AZ,Programme
Food Standards Agency,Food Standards Agency,26/08/2014,Travel UK ,Procurement,Redfern Travel Ltd,087939,159.43,REDFERN TRAVEL INVOICE WEEK 33,BD1 3AZ,Admin
Food Standards Agency,Food Standards Agency,26/08/2014,Travel UK ,Area 5 South West England - Cluster 57,Redfern Travel Ltd,087939,157.38,REDFERN TRAVEL INVOICE WEEK 33,BD1 3AZ,Programme
Food Standards Agency,Food Standards Agency,26/08/2014,Subsistence UK,Chemical Risk Assessment Unit,Redfern Travel Ltd,087939,149.91,REDFERN TRAVEL INVOICE WEEK 33,BD1 3AZ,Admin
Food Standards Agency,Food Standards Agency,11/08/2014,Travel UK ,Better Regulations & Sustainable Development,Redfern Travel Ltd,086979,147.33,REDFERN TRAVEL INVOICE WEEK 31,BD1 3AZ,Admin
Food Standards Agency,Food Standards Agency,05/08/2014,Fixed Assets Additions,IT Strategy,Capita Secure Information Solutions Ltd,93803145,146.80,PO 417200 IL2 TO PSN MIGRATION PHASE 1 DISCOVERY,SN14 0TW,Capital
Food Standards Agency,Food Standards Agency,11/08/2014,International Travel,Chief Executive & Private Office,Redfern Travel Ltd,086979,138.60,REDFERN TRAVEL INVOICE WEEK 31,BD1 3AZ,Admin
Food Standards Agency,Food Standards Agency,26/08/2014,Travel UK ,Non Meat Field Ops,Redfern Travel Ltd,087939,138.08,REDFERN TRAVEL INVOICE WEEK 33,BD1 3AZ,Programme
Food Standards Agency,Food Standards Agency,26/08/2014,Travel UK ,Area 4 North East England - Cluster 46,Redfern Travel Ltd,087939,135.75,REDFERN TRAVEL INVOICE WEEK 33,BD1 3AZ,Programme
Food Standards Agency,Food Standards Agency,11/08/2014,Subsistence UK,Security & Estates,Redfern Travel Ltd,086979,132.12,REDFERN TRAVEL INVOICE WEEK 31,BD1 3AZ,Admin
Food Standards Agency,Food Standards Agency,11/08/2014,Travel UK ,IT Information & Knowledge Management,Redfern Travel Ltd,086979,122.66,REDFERN TRAVEL INVOICE WEEK 31,BD1 3AZ,Admin
Food Standards Agency,Food Standards Agency,26/08/2014,Travel UK ,Area 3 North West England - Cluster 31,Redfern Travel Ltd,087939,117.55,REDFERN TRAVEL INVOICE WEEK 33,BD1 3AZ,Programme
Food Standards Agency,Food Standards Agency,05/08/2014,Fixed Assets Additions,IT Strategy,Capita Secure Information Solutions Ltd,93803145,115.00,PO 417200 IL2 TO PSN MIGRATION PHASE 1 DISCOVERY,SN14 0TW,Capital
Food Standards Agency,Food Standards Agency,11/08/2014,Travel UK ,Area 6 South East England - Cluster 63,Redfern Travel Ltd,086979,110.67,REDFERN TRAVEL INVOICE WEEK 31,BD1 3AZ,Programme
Food Standards Agency,Food Standards Agency,26/08/2014,Travel UK ,Area 3 North West England - Cluster 35,Redfern Travel Ltd,087939,108.39,REDFERN TRAVEL INVOICE WEEK 33,BD1 3AZ,Programme
Food Standards Agency,Food Standards Agency,11/08/2014,Subsistence UK,Area 2 Wales - Cluster 22,Redfern Travel Ltd,086979,102.21,REDFERN TRAVEL INVOICE WEEK 31,BD1 3AZ,Programme
Food Standards Agency,Food Standards Agency,26/08/2014,Subsistence UK,Area 2 Wales - Cluster 23,Redfern Travel Ltd,087939,102.21,REDFERN TRAVEL INVOICE WEEK 33,BD1 3AZ,Programme
Food Standards Agency,Food Standards Agency,11/08/2014,Subsistence UK,Comms Directors Office,Redfern Travel Ltd,086979,102.21,REDFERN TRAVEL INVOICE WEEK 31,BD1 3AZ,Admin
Food Standards Agency,Food Standards Agency,26/08/2014,Subsistence UK,Legal Branch A,Redfern Travel Ltd,087939,101.56,REDFERN TRAVEL INVOICE WEEK 33,BD1 3AZ,Admin
Food Standards Agency,Food Standards Agency,26/08/2014,Subsistence UK,Area 1 Scotland - Cluster 12,Redfern Travel Ltd,087939,97.21,REDFERN TRAVEL INVOICE WEEK 33,BD1 3AZ,Programme
Food Standards Agency,Food Standards Agency,26/08/2014,Travel UK ,Area 1 Scotland - Cluster 13,Redfern Travel Ltd,087939,96.66,REDFERN TRAVEL INVOICE WEEK 33,BD1 3AZ,Programme
Food Standards Agency,Food Standards Agency,26/08/2014,Subsistence UK,Better Regulations & Sustainable Development,Redfern Travel Ltd,087939,95.56,REDFERN TRAVEL INVOICE WEEK 33,BD1 3AZ,Admin
Food Standards Agency,Food Standards Agency,11/08/2014,International Travel,Analysis & Research Branch,Redfern Travel Ltd,086979,89.92,REDFERN TRAVEL INVOICE WEEK 31,BD1 3AZ,Admin
Food Standards Agency,Food Standards Agency,26/08/2014,Travel UK ,Operations Assurance - Admin,Redfern Travel Ltd,087939,88.68,REDFERN TRAVEL INVOICE WEEK 33,BD1 3AZ,Admin
Food Standards Agency,Food Standards Agency,11/08/2014,Travel UK ,Legal Branch A,Redfern Travel Ltd,086979,86.32,REDFERN TRAVEL INVOICE WEEK 31,BD1 3AZ,Admin
Food Standards Agency,Food Standards Agency,26/08/2014,Subsistence UK,Operations Local Delivery ,Redfern Travel Ltd,087939,81.06,REDFERN TRAVEL INVOICE WEEK 33,BD1 3AZ,Admin
Food Standards Agency,Food Standards Agency,11/08/2014,Subsistence UK,Area 6 South East England - Cluster 64,Redfern Travel Ltd,086979,79.56,REDFERN TRAVEL INVOICE WEEK 31,BD1 3AZ,Programme
Food Standards Agency,Food Standards Agency,11/08/2014,Travel UK ,Area 1 Scotland - Cluster 13,Redfern Travel Ltd,086979,77.94,REDFERN TRAVEL INVOICE WEEK 31,BD1 3AZ,Programme
Food Standards Agency,Food Standards Agency,26/08/2014,Travel UK ,Area 6 South East England - Cluster 64,Redfern Travel Ltd,087939,77.09,REDFERN TRAVEL INVOICE WEEK 33,BD1 3AZ,Programme
Food Standards Agency,Food Standards Agency,26/08/2014,Travel UK ,Area 6 South East England - Cluster 66,Redfern Travel Ltd,087939,76.92,REDFERN TRAVEL INVOICE WEEK 33,BD1 3AZ,Programme
Food Standards Agency,Food Standards Agency,11/08/2014,Travel UK ,Area 1 Scotland - Cluster 12,Redfern Travel Ltd,086979,76.82,REDFERN TRAVEL INVOICE WEEK 31,BD1 3AZ,Programme
Food Standards Agency,Food Standards Agency,26/08/2014,Subsistence UK,Hygiene & Microbiology Division HoD,Redfern Travel Ltd,087939,76.56,REDFERN TRAVEL INVOICE WEEK 33,BD1 3AZ,Admin
Food Standards Agency,Food Standards Agency,26/08/2014,Subsistence UK,Food Production Branch,Redfern Travel Ltd,087939,76.56,REDFERN TRAVEL INVOICE WEEK 33,BD1 3AZ,Admin
Food Standards Agency,Food Standards Agency,11/08/2014,Subsistence EC,Area 5 South West England - Cluster 57,Redfern Travel Ltd,086979,75.06,REDFERN TRAVEL INVOICE WEEK 31,BD1 3AZ,Programme
Food Standards Agency,Food Standards Agency,26/08/2014,Travel UK ,Chair & Deputy Chair,Redfern Travel Ltd,087939,73.40,REDFERN TRAVEL INVOICE WEEK 33,BD1 3AZ,Admin
Food Standards Agency,Food Standards Agency,11/08/2014,Travel UK ,Area 4 North East England - Cluster 42,Redfern Travel Ltd,086979,68.36,REDFERN TRAVEL INVOICE WEEK 31,BD1 3AZ,Programme
Food Standards Agency,Food Standards Agency,11/08/2014,Travel UK ,Area 4 North East England - Cluster 41,Redfern Travel Ltd,086979,67.80,REDFERN TRAVEL INVOICE WEEK 31,BD1 3AZ,Programme
Food Standards Agency,Food Standards Agency,11/08/2014,Travel UK ,Area 6 South East England - Cluster 66,Redfern Travel Ltd,086979,63.97,REDFERN TRAVEL INVOICE WEEK 31,BD1 3AZ,Programme
Food Standards Agency,Food Standards Agency,11/08/2014,Travel UK ,Area 6 South East England - Cluster 61,Redfern Travel Ltd,086979,62.73,REDFERN TRAVEL INVOICE WEEK 31,BD1 3AZ,Programme
Food Standards Agency,Food Standards Agency,11/08/2014,Travel UK ,Chemical Risk Assessment Unit,Redfern Travel Ltd,086979,62.04,REDFERN TRAVEL INVOICE WEEK 31,BD1 3AZ,Admin
Food Standards Agency,Food Standards Agency,11/08/2014,Travel UK ,Area 5 South West England - Cluster 55,Redfern Travel Ltd,086979,59.22,REDFERN TRAVEL INVOICE WEEK 31,BD1 3AZ,Programme
Food Standards Agency,Food Standards Agency,11/08/2014,Subsistence UK,Area 4 North East England - Cluster 41,Redfern Travel Ltd,086979,58.56,REDFERN TRAVEL INVOICE WEEK 31,BD1 3AZ,Programme
Food Standards Agency,Food Standards Agency,26/08/2014,Travel UK ,Food Production Branch,Redfern Travel Ltd,087939,51.19,REDFERN TRAVEL INVOICE WEEK 33,BD1 3AZ,Admin
Food Standards Agency,Food Standards Agency,26/08/2014,Travel UK ,Area 4 North East England - Cluster 48,Redfern Travel Ltd,087939,50.90,REDFERN TRAVEL INVOICE WEEK 33,BD1 3AZ,Programme
Food Standards Agency,Food Standards Agency,11/08/2014,Travel UK ,Hygiene & Microbiology Division HoD,Redfern Travel Ltd,086979,48.67,REDFERN TRAVEL INVOICE WEEK 31,BD1 3AZ,Admin
Food Standards Agency,Food Standards Agency,11/08/2014,Travel UK ,Analysis & Research Branch,Redfern Travel Ltd,086979,48.60,REDFERN TRAVEL INVOICE WEEK 31,BD1 3AZ,Admin
Food Standards Agency,Food Standards Agency,11/08/2014,Travel UK ,Chief Executive & Private Office,Redfern Travel Ltd,086979,43.00,REDFERN TRAVEL INVOICE WEEK 31,BD1 3AZ,Admin
Food Standards Agency,Food Standards Agency,11/08/2014,Travel UK ,Area 6 South East England - Cluster 65,Redfern Travel Ltd,086979,42.63,REDFERN TRAVEL INVOICE WEEK 31,BD1 3AZ,Programme
Food Standards Agency,Food Standards Agency,26/08/2014,Travel UK ,IT Information & Knowledge Management,Redfern Travel Ltd,087939,39.24,REDFERN TRAVEL INVOICE WEEK 33,BD1 3AZ,Admin
Food Standards Agency,Food Standards Agency,26/08/2014,Travel UK ,Area 4 North East England - Cluster 44,Redfern Travel Ltd,087939,27.88,REDFERN TRAVEL INVOICE WEEK 33,BD1 3AZ,Programme
Food Standards Agency,Food Standards Agency,11/08/2014,Travel UK ,Area 4 North East England - Cluster 44,Redfern Travel Ltd,086979,26.63,REDFERN TRAVEL INVOICE WEEK 31,BD1 3AZ,Programme
Food Standards Agency,Food Standards Agency,26/08/2014,Travel UK ,Operations Local Delivery ,Redfern Travel Ltd,087939,23.24,REDFERN TRAVEL INVOICE WEEK 33,BD1 3AZ,Admin
Food Standards Agency,Food Standards Agency,26/08/2014,Travel UK ,Analysis & Research Branch,Redfern Travel Ltd,087939,22.85,REDFERN TRAVEL INVOICE WEEK 33,BD1 3AZ,Admin
Food Standards Agency,Food Standards Agency,26/08/2014,Travel UK ,Chief Scientist,Redfern Travel Ltd,087939,19.84,REDFERN TRAVEL INVOICE WEEK 33,BD1 3AZ,Admin
Food Standards Agency,Food Standards Agency,11/08/2014,Subsistence UK,Area 2 Wales - Cluster 21,Redfern Travel Ltd,086979,1.56,REDFERN TRAVEL INVOICE WEEK 31,BD1 3AZ,Programme
Food Standards Agency,Food Standards Agency,11/08/2014,Subsistence UK,Area 4 North East England - Cluster 42,Redfern Travel Ltd,086979,1.56,REDFERN TRAVEL INVOICE WEEK 31,BD1 3AZ,Programme
Food Standards Agency,Food Standards Agency,11/08/2014,Subsistence UK,Area 4 North East England - Cluster 48,Redfern Travel Ltd,086979,1.56,REDFERN TRAVEL INVOICE WEEK 31,BD1 3AZ,Programme
Food Standards Agency,Food Standards Agency,26/08/2014,Subsistence UK,Operations Assurance - Admin,Redfern Travel Ltd,087939,1.56,REDFERN TRAVEL INVOICE WEEK 33,BD1 3AZ,Admin
Food Standards Agency,Food Standards Agency,11/08/2014,Subsistence EC,Food Production Branch,Redfern Travel Ltd,086979,1.56,REDFERN TRAVEL INVOICE WEEK 31,BD1 3AZ,Admin
Food Standards Agency,Food Standards Agency,26/08/2014,Subsistence UK,Foodborne Diseases Branch,Redfern Travel Ltd,087939,1.56,REDFERN TRAVEL INVOICE WEEK 33,BD1 3AZ,Admin
Food Standards Agency,Food Standards Agency,26/08/2014,Subsistence EC,Animal Feed Branch,Redfern Travel Ltd,087939,1.56,REDFERN TRAVEL INVOICE WEEK 33,BD1 3AZ,Admin
Food Standards Agency,Food Standards Agency,26/08/2014,Subsistence UK,Security & Estates,Redfern Travel Ltd,087939,1.56,REDFERN TRAVEL INVOICE WEEK 33,BD1 3AZ,Admin
Food Standards Agency,Food Standards Agency,11/08/2014,Subsistence UK,Internal Audit,Redfern Travel Ltd,086979,1.56,REDFERN TRAVEL INVOICE WEEK 31,BD1 3AZ,Admin
Food Standards Agency,Food Standards Agency,07/08/2014,Laundry,Operational Delivery,Apparelmaster UK Ltd,55317,0.04,"PO 417042, 29/6-26/7/14 CHARGES",PR2 9ZD,Programme
Food Standards Agency,Food Standards Agency,26/08/2014,Travel UK ,Radiation & Residues,Redfern Travel Ltd,087939,0.00,REDFERN TRAVEL INVOICE WEEK 33,BD1 3AZ,Admin
Food Standards Agency,Food Standards Agency,11/08/2014,Travel UK ,Area 6 South East England - Cluster 64,Redfern Travel Ltd,086979,-47.11,REDFERN TRAVEL INVOICE WEEK 31,BD1 3AZ,Programme
Food Standards Agency,Food Standards Agency,26/08/2014,Travel UK ,Allergens,Redfern Travel Ltd,087939,-63.60,REDFERN TRAVEL INVOICE WEEK 33,BD1 3AZ,Admin
Food Standards Agency,Food Standards Agency,26/08/2014,Travel UK ,Consumer Protection & Commercial Support,Redfern Travel Ltd,087939,-92.72,REDFERN TRAVEL INVOICE WEEK 33,BD1 3AZ,Admin
Food Standards Agency,Food Standards Agency,26/08/2014,Subsistence UK,Procurement,Redfern Travel Ltd,087939,-94.00,REDFERN TRAVEL INVOICE WEEK 33,BD1 3AZ,Admin
Food Standards Agency,Food Standards Agency,11/08/2014,International Travel,Analysis & Research Branch,Redfern Travel Ltd,086979,-109.00,REDFERN TRAVEL INVOICE WEEK 31,BD1 3AZ,Admin
Food Standards Agency,Food Standards Agency,26/08/2014,Travel UK ,Area 4 North East England - Cluster 41,Redfern Travel Ltd,087939,-121.34,REDFERN TRAVEL INVOICE WEEK 33,BD1 3AZ,Programme
Food Standards Agency,Food Standards Agency,11/08/2014,Travel Lump sum,Procurement,Redfern Travel Ltd,086979,-329.35,REDFERN TRAVEL INVOICE WEEK 31,BD1 3AZ,Admin
"Date Run: 15-SEP-14 09.44.10 AM --- Company Code : '17, 18' , Payment Start Date : '01-AUG-2014' , Payment End Date : '31-AUG-2014'",,,,,,,,,,
